bitfinex-derivatives/quotes_ETHF0:USTF0_20251210
["timestamp","ask_amount","ask_price","bid_price","bid_amount"]
[1765405860501,7.45089909,3335.3,3335.2,19.83867]
[1765405861893,0.00339909,3335.3,3335.2,19.83867]
[1765405862493,3.71659909,3335.3,3335.2,19.83867]
[1765405863196,7.45089909,3335.3,3335.2,19.83867]
[1765405864699,7.4475,3334.9,3334.8,4.07929]
[1765405864892,7.4475,3334.9,3334.8,7.81969]
[1765405865092,8.48314486,3334.9,3334.8,7.81969]
[1765405865392,7.4475,3334.9,3334.8,7.81969]
[1765405866285,3.7132,3334.9,3334.8,7.81969]
[1765405867086,7.4475,3334.9,3334.8,7.81969]
[1765405868500,3.7132,3334.9,3334.8,7.81969]
[1765405868998,7.4475,3334.9,3334.8,7.81969]
[1765405871803,8.48393692,3334.9,3334.8,0.14989]
[1765405871995,8.48393692,3334.9,3334.8,15.92899]
[1765405872191,8.48393692,3334.9,3334.8,19.55729]
[1765405876604,7.4475,3334.9,3334.8,19.55729]
[1765405878906,3.7132,3334.9,3334.8,19.55729]
[1765405881716,7.18919909,3335.3,3335.2,7.54727]
[1765405882012,8.22447819,3335.3,3335.2,7.54727]
[1765405882614,8.22447819,3335.3,3335.2,3.91897]
[1765405883012,0.00339909,3335.3,3335.2,7.54727]
[1765405883711,3.50489909,3335.3,3335.2,7.54727]
[1765405883908,0.00339909,3335.3,3335.2,7.54727]
[1765405884416,3.50489909,3335.3,3335.2,7.54727]
[1765405886716,0.00339909,3335.3,3335.2,7.54727]
[1765405889217,3.50489909,3335.3,3335.2,7.54727]
[1765405889417,0.00339909,3335.3,3335.2,7.54727]
[1765405892123,3.44789909,3335.3,3335.2,7.54727]
[1765405892319,6.98649909,3335.3,3335.2,0.14987]
[1765405893724,8.02065278,3335.3,3335.2,0.14987]
[1765405894227,9.21904613,3335.3,3335.2,0.14987]
[1765405900224,6.9831,3334.7,3334.6,0.1499]
[1765405900424,9.21564704,3334.7,3334.6,0.1499]
[1765405901532,8.01725369,3334.7,3334.6,0.1499]
[1765405902133,11.87025369,3334.7,3334.6,0.1499]
[1765405902527,11.87025369,3334.7,3333.9,0.00293716]
[1765405902731,9.68219335,3334.0,3333.9,0.15285716]
[1765405904535,12.88999335,3334.0,3333.9,0.15285716]
[1765405905836,12.88999335,3334.0,3333.6,0.0045026]
[1765405905837,6.9831,3333.7,3333.6,0.0045026]
[1765405906528,12.03449335,3333.7,3333.6,0.0045026]
[1765405906723,12.03449335,3333.7,3333.6,0.00740322]
[1765405908435,10.8361,3333.7,3333.6,6.82300322]
[1765405909032,10.8361,3333.7,3333.6,3.56780322]
[1765405909635,10.8361,3333.7,3333.6,3.71774322]
[1765405910639,10.8361,3333.7,3333.6,0.15734322]
[1765405910831,10.8361,3333.7,3333.6,3.71774322]
[1765405911031,10.8361,3333.7,3333.6,0.15734322]
[1765405914246,6.9831,3332.9,3332.8,0.14998]
[1765405914434,10.8361,3332.9,3332.8,0.14998]
[1765405915335,10.83906137,3332.9,3332.8,0.15333966]
[1765405916737,10.83906137,3332.9,3332.8,3.71373966]
[1765405918044,10.83906137,3332.9,3332.8,0.15333966]
[1765405921043,6.227,3332.6,3332.5,0.0045026]
[1765405921347,6.227,3331.7,3331.6,2.991]
[1765405921548,9.4348,3331.7,3331.6,2.991]
[1765405921846,9.4348,3331.7,3331.2,0.15005]
[1765405922047,3.2078,3331.3,3331.2,7.4870625]
[1765405922236,6.3318,3331.3,3331.2,7.4870625]
[1765405922841,9.4348,3331.3,3331.2,7.4870625]
[1765405923141,9.4348,3331.3,3331.2,6.28866915]
[1765405923646,9.4348,3331.3,3331.2,0.15356915]
[1765405923847,9.4348,3331.3,3331.2,3.14456915]
[1765405924347,9.4348,3331.3,3331.2,0.15356915]
[1765405926046,9.4348,3331.3,3331.2,0.00351915]
[1765405926258,8.1512,3330.5,3330.4,0.15008]
[1765405926551,12.55739335,3330.5,3330.4,0.15008]
[1765405926845,11.359,3330.5,3330.4,0.15008]
[1765405927047,11.359,3330.5,3329.7,6.28521]
[1765405927048,6.227,3329.8,3329.7,6.28521]
[1765405927440,6.227,3329.8,3329.7,6.28797231]
[1765405927648,6.227,3329.8,3329.7,3.14387231]
[1765405928349,7.23856484,3329.8,3329.7,0.15287231]
[1765405931451,7.23856484,3329.8,3329.7,3.36467231]
[1765405931657,7.23856484,3329.8,3329.7,0.15287231]
[1765405933961,8.83617805,3329.8,3329.7,0.15287231]
[1765405934259,8.0196,3329.5,3329.4,0.0045026]
[1765405934452,12.23896484,3329.5,3329.4,0.0045026]
[1765405935163,4.21936484,3329.5,3329.4,6.296502]
[1765405935460,7.28436484,3329.5,3329.4,6.296502]
[1765405935856,10.27426484,3329.5,3329.4,6.296502]
[1765405936458,4.21936484,3329.5,3329.4,6.446632]
[1765405937856,7.28436484,3329.5,3329.4,6.446632]
[1765405938862,4.21936484,3329.5,3329.4,6.446632]
[1765405939463,12.23896484,3329.5,3329.4,6.446632]
[1765405939664,12.23896484,3329.5,3329.4,3.369632]
[1765405940063,12.23896484,3329.5,3329.4,0.157832]
[1765405940264,13.81471268,3329.5,3329.4,0.157832]
[1765405941257,13.81471268,3329.5,3329.4,0.007702]
[1765405941258,12.23896484,3329.5,3329.4,0.007702]
[1765405941459,1.9647,3329.0,3328.3,6.2888]
[1765405941664,9.2627,3328.6,3328.5,0.15017]
[1765405941864,10.27426484,3328.6,3328.5,0.15017]
[1765405942063,6.0549,3327.9,3327.8,6.439]
[1765405942265,7.06646484,3327.9,3327.8,6.439]
[1765405942564,7.06910375,3327.9,3327.8,6.44249789]
[1765405942765,7.06910375,3327.9,3327.8,0.15369789]
[1765405943168,9.17133936,3327.9,3327.8,0.15369789]
[1765405943769,9.17133936,3327.9,3327.8,0.00349789]
[1765405943958,7.06910375,3327.9,3327.8,0.00349789]
[1765405945271,6.0549,3327.6,3327.5,0.0045026]
[1765405945465,12.37589236,3327.6,3327.5,6.2933026]
[1765405945674,1.01156484,3327.6,3327.5,8.3811226]
[1765405945864,7.06646484,3327.6,3327.5,6.4435226]
[1765405946266,7.06646484,3327.6,3327.5,6.44683282]
[1765405946467,4.07656484,3327.6,3327.5,8.38443282]
[1765405946772,7.28436484,3327.6,3327.5,6.44683282]
[1765405946966,10.27426484,3327.6,3327.5,6.44683282]
[1765405947164,10.27426484,3327.6,3327.5,0.15803282]
[1765405949068,10.27426484,3327.6,3327.5,6.43713282]
[1765405949264,4.21936484,3327.6,3327.5,8.28723282]
[1765405950176,5.79841695,3327.6,3327.5,8.28723282]
[1765405950378,1.01156484,3327.6,3327.5,8.28723282]
[1765405954277,2.59474637,3327.6,3327.5,14.28723282]
[1765405954581,1.01156484,3327.6,3327.5,14.28723282]
[1765405955985,1.58318153,3327.8,3327.7,6.13011]
[1765405956177,0.00263891,3327.9,3327.8,6.1301]
[1765405956374,0.00263891,3327.9,3327.8,18.1361]
[1765405956584,0.00263891,3327.9,3327.8,54.9361]
[1765405957491,0.0045026,3328.2,3328.1,6.13009]
[1765405958587,0.00741467,3328.2,3328.1,6.13009]
[1765405961482,1.467e-05,3328.2,3328.1,6.13009]
[1765405961790,3.07888277,3328.4,3328.3,6.13008]
[1765405962479,1.58318153,3329.1,3329.0,6.13005]
[1765405962680,10.49398153,3329.1,3329.0,18.13405]
[1765405962979,10.49657407,3329.1,3329.0,12.15415]
[1765405963184,8.91339254,3329.1,3329.0,15.06675]
[1765405964490,8.91339254,3329.1,3329.0,18.13405]
[1765405964987,8.91339254,3329.1,3329.0,15.06675]
[1765405967384,8.91339254,3329.1,3329.0,0.15015]
[1765405967982,9.80683083,3329.1,3329.0,0.15015]
[1765405969886,9.80683083,3329.1,3329.0,3.06275]
[1765405970083,9.80683083,3329.1,3329.0,6.13005]
[1765405970287,6.92353083,3329.1,3329.0,6.13005]
[1765405970588,9.80683083,3329.1,3329.0,6.13005]
[1765405971387,8.91339254,3329.1,3329.0,6.13005]
[1765405971589,3.21039254,3329.1,3329.0,7.3030317]
[1765405971789,3.21039254,3329.1,3329.0,9.1654317]
[1765405971988,8.91339254,3329.1,3329.0,7.3030317]
[1765405972790,8.91339254,3329.1,3329.0,3.06275]
[1765405972991,8.91339254,3329.1,3329.0,6.13005]
[1765405973187,6.03009254,3329.1,3329.0,6.13005]
[1765405974193,8.91339254,3329.1,3329.0,3.06275]
[1765405975395,3.21039254,3329.1,3329.0,6.13005]
[1765405975594,3.21039254,3329.1,3329.0,7.88265]
[1765405975896,6.03009254,3329.1,3329.0,6.13005]
[1765405976096,8.91339254,3329.1,3329.0,6.13005]
[1765405976597,6.03009254,3329.1,3329.0,6.13005]
[1765405976797,8.91339254,3329.1,3329.0,6.13005]
[1765405979793,2.82229254,3329.1,3329.0,6.13005]
[1765405980000,0.00259254,3329.1,3329.0,7.76375]
[1765405980399,2.83049254,3329.1,3329.0,6.13005]
[1765405980606,5.65329254,3329.1,3329.0,6.13005]
[1765405980903,5.65329254,3329.1,3329.0,0.15015]
[1765405982496,5.65329254,3329.1,3329.0,3.10805]
[1765405983002,2.83049254,3329.1,3329.0,6.03905]
[1765405983803,5.65329254,3329.1,3329.0,3.10805]
[1765405984206,5.65329254,3329.1,3329.0,0.15015]
[1765405984505,5.65329254,3329.1,3329.0,3.10805]
[1765405984705,5.65329254,3329.1,3329.0,6.03905]
[1765405986804,0.00259254,3329.1,3329.0,6.03905]
[1765405987701,0.00259254,3329.1,3329.0,7.50715]
[1765405988115,0.0045026,3329.4,3329.3,6.03903]
[1765405988313,0.0045026,3329.4,3329.3,18.03303]
[1765405989300,3.2078,3330.1,3329.5,1.7276]
[1765405989513,1.752,3330.5,3329.5,1.7276]
[1765405989707,1.752,3330.5,3329.7,3.2078]
[1765405990308,0.0045026,3330.4,3329.8,0.0045026]
[1765405990609,5.6504,3330.3,3330.2,0.15009]
[1765405990811,5.6504,3330.3,3330.2,0.15309353]
[1765405991106,5.6504,3330.3,3330.2,5.73009353]
[1765405991812,5.6504,3330.3,3330.2,3.04849353]
[1765405992005,5.6504,3330.3,3330.2,5.73009353]
[1765405992610,2.8279,3330.3,3330.2,5.73009353]
[1765405992811,5.6504,3330.3,3330.2,5.73009353]
[1765405993010,5.6504,3330.3,3330.2,17.72109353]
[1765405993206,5.4725026,3330.4,3330.3,5.72709]
[1765405993605,5.4725026,3330.4,3330.3,3.04549]
[1765405994000,5.4725026,3330.4,3330.3,0.15009]
[1765405994199,5.4725026,3330.4,3330.3,3.04549]
[1765405994409,5.4725026,3330.4,3330.3,0.15009]
[1765405994706,5.4725026,3330.4,3330.3,3.04549]
[1765405995408,5.4725026,3330.4,3330.3,5.72709]
[1765405995606,0.0045026,3330.4,3330.3,5.72709]
[1765405995810,5.4725026,3330.4,3330.3,0.15009]
[1765405997309,5.4725026,3330.4,3330.3,3.04549]
[1765405997510,5.4725026,3330.4,3330.3,0.15009]
[1765405997911,5.4725026,3330.4,3330.3,3.04549]
[1765405998214,5.4725026,3330.4,3330.3,0.15009]
[1765405998413,5.4725026,3330.4,3330.3,3.04549]
[1765405998614,5.4725026,3330.4,3330.3,5.72709]
[1765405999014,5.4725026,3330.4,3330.3,0.15009]
[1765405999510,0.0045026,3330.4,3330.3,3.04549]
[1765405999713,5.4725026,3330.4,3330.3,5.72709]
[1765406000014,5.4725026,3330.4,3330.3,3.04549]
[1765406000318,2.6500026,3330.4,3330.3,5.72709]
[1765406000510,0.0045026,3330.4,3330.3,5.72709]
[1765406001514,0.0045026,3330.4,3330.3,6.89890467]
[1765406002514,3.2078,3331.0,3330.4,5.577]
[1765406002712,2.6455,3331.2,3331.1,5.72705]
[1765406003116,5.468,3331.2,3331.1,5.72705]
[1765406003616,5.47070252,3331.2,3331.1,5.72705]
[1765406004210,5.47070252,3331.2,3331.1,3.04545]
[1765406004409,5.47070252,3331.2,3331.1,0.15005]
[1765406005513,5.47070252,3331.2,3331.1,3.04545]
[1765406006020,5.468,3331.9,3331.8,3.04542]
[1765406006519,1.6931,3332.0,3331.9,0.15002]
[1765406006716,8.6758,3332.3,3332.2,5.727]
[1765406006908,7.1611,3332.5,3332.4,5.72699]
[1765406007114,2.64935701,3332.5,3332.4,5.72699]
[1765406007817,0.00385701,3332.5,3332.4,5.72699]
[1765406008210,0.0045026,3332.8,3332.7,5.5955]
[1765406008211,2.6500026,3332.8,3332.7,5.5955]
[1765406008411,5.1427026,3332.8,3332.7,6.94589346]
[1765406008911,5.1427026,3332.8,3332.7,5.74548]
[1765406009323,5.14578796,3332.8,3332.7,5.7481402]
[1765406010213,0.00758796,3332.8,3332.7,5.7481402]
[1765406010413,0.00758796,3332.8,3332.7,17.7291402]
[1765406010624,4.9009,3333.5,3333.4,5.2556]
[1765406010819,6.7057,3333.5,3333.4,5.40555]
[1765406011716,6.70819148,3333.5,3333.4,5.40555]
[1765406012522,2.52239148,3333.5,3333.4,5.40555]
[1765406012723,0.00249148,3333.5,3333.4,5.40555]
[1765406018832,3.85595511,3333.8,3333.7,5.40554]
[1765406019828,3.85824745,3333.8,3333.7,5.40554]
[1765406020128,3.85824745,3333.8,3333.7,17.37854]
[1765406020328,1.09028567,3334.9,3334.7,5.2556]
[1765406020524,1.09028567,3334.9,3334.7,2.5555]
[1765406020525,5.95735481,3334.8,3334.7,2.5555]
[1765406020934,3.46465481,3334.8,3334.7,5.2556]
[1765406021129,2.5199,3334.8,3334.7,5.40549]
[1765406021431,5.01511117,3334.8,3334.7,5.40549]
[1765406022127,5.95927748,3334.8,3334.7,5.40549]
[1765406022325,5.95927748,3334.8,3332.0,0.15001]
[1765406022525,5.95927748,3334.8,3325.5,16.79588175]
[1765406022526,5.0126,3330.2,3330.1,3.2078]
[1765406022736,5.0126,3330.2,3328.0,1.5958]
[1765406022737,0.94224918,3330.2,3329.9,2.5555]
[1765406023029,1.5773,3331.0,3330.0,5.2556]
[1765406023233,1.5773,3331.0,3330.4,0.15008]
[1765406023234,0.94276245,3330.9,3330.4,0.15008]
[1765406023431,0.00367208,3330.9,3330.5,0.15008]
[1765406023730,5.0126,3330.6,3330.5,0.15008]
[1765406024532,5.0126,3330.5,3330.4,0.00343367]
[1765406025434,5.94008795,3330.5,3330.4,0.00343367]
[1765406029236,7.51738795,3330.5,3330.4,0.00343367]
[1765406029924,3.2078,3330.6,3330.4,5.25903367]
[1765406030129,3.2078,3330.6,3330.5,5.2556]
[1765406031135,5.7277,3330.6,3330.5,5.2556]
[1765406031330,5.7277,3330.6,3330.5,2.5555]
[1765406031732,0.00367208,3330.9,3330.8,5.40567]
[1765406035144,5.01627208,3330.9,3330.8,0.15007]
[1765406036344,0.00367208,3330.9,3330.8,5.40567]
[1765406036738,2.52357208,3330.9,3330.8,5.40567]
[1765406036947,2.52357208,3330.9,3330.8,0.15007]
[1765406036948,5.01627208,3330.9,3330.8,0.15007]
[1765406045053,2.52357208,3330.9,3330.8,0.15007]
[1765406045255,0.00367208,3330.9,3330.8,6.02387]
[1765406056055,3.2078,3331.5,3331.4,5.88604]
[1765406056255,3.2078,3331.5,3331.4,18.00604]
[1765406056755,5.583,3331.8,3331.7,5.88602]
[1765406056954,9.43897092,3331.8,3331.7,2.97062]
[1765406057555,9.43897092,3331.8,3331.7,5.88602]
[1765406059359,6.55037092,3331.8,3331.7,5.88602]
[1765406060164,9.43897092,3331.8,3331.7,5.88602]
[1765406061070,9.43897092,3331.8,3331.7,12.25702]
[1765406064369,10.37340424,3331.8,3331.7,12.25702]
[1765406068567,13.58120424,3331.8,3331.7,12.25702]
[1765406071975,19.58120424,3331.8,3331.7,12.25702]
[1765406072182,13.58120424,3331.8,3331.7,12.25702]
[1765406076580,6.83960424,3331.8,3331.7,17.42962]
[1765406076985,3.21077092,3331.8,3331.7,17.42962]
[1765406078883,8.44197092,3331.8,3331.7,17.42962]
[1765406080189,5.72617092,3331.8,3331.7,17.42962]
[1765406080491,8.44197092,3331.8,3331.7,17.42962]
[1765406080684,8.44197092,3331.8,3331.7,14.84492]
[1765406083390,3.21077092,3331.8,3331.7,17.38862]
[1765406084979,3.21077092,3331.8,3331.7,58.18862]
[1765406085191,3.853,3332.4,3332.3,5.14301]
[1765406085488,7.0608,3332.4,3332.3,5.14301]
[1765406086284,7.0645002,3332.4,3332.3,5.14301]
[1765406087694,3.2115002,3332.4,3332.3,5.14301]
[1765406089296,0.0037002,3332.4,3332.3,5.14301]
[1765406089890,3.2078,3332.8,3332.7,5.3226]
[1765406090193,3.2078,3333.2,3333.1,5.32258]
[1765406090891,3.21113984,3333.2,3333.1,5.32522407]
[1765406093191,3.853,3334.4,3333.9,0.14994]
[1765406093394,10.0865,3334.0,3333.9,0.14994]
[1765406093791,4.8553,3334.0,3333.9,0.14994]
[1765406093991,10.0865,3334.0,3333.9,0.14994]
[1765406094293,10.09035465,3334.0,3333.9,0.14994]
[1765406094492,4.85915465,3334.0,3333.9,0.14994]
[1765406094694,10.09035465,3334.0,3333.9,0.14994]
[1765406095293,7.37455465,3334.0,3333.9,0.14994]
[1765406095488,7.37455465,3334.0,3333.9,0.23194]
[1765406098700,10.09035465,3334.0,3333.9,0.23194]
[1765406098900,7.37455465,3334.0,3333.9,0.23194]
[1765406099298,10.16475465,3334.0,3333.9,0.23194]
[1765406100303,10.16475465,3334.0,3333.9,0.19094]
[1765406103101,7.37455465,3334.0,3333.9,0.19094]
[1765406103403,10.16475465,3334.0,3333.9,0.14994]
[1765406105209,6.95695465,3334.0,3333.9,0.14994]
[1765406109213,10.80995465,3334.0,3333.9,0.14994]
[1765406117417,10.80995465,3334.0,3333.9,12.14794]
[1765406119318,11.76992837,3334.0,3333.9,12.14794]
[1765406120524,11.76992837,3334.0,3333.9,4.07894]
[1765406121517,11.76992837,3334.0,3333.9,4.22888]
[1765406125726,11.76992837,3334.0,3333.9,6.96178]
[1765406126326,11.76992837,3334.0,3333.9,4.22888]
[1765406127528,10.14362837,3334.0,3333.9,9.56198]
[1765406127730,3.85685465,3334.0,3333.9,12.76978]
[1765406127929,6.54745465,3334.0,3333.9,12.76978]
[1765406128725,6.54745465,3334.0,3333.9,13.9688314]
[1765406131035,0.00385465,3334.0,3333.9,13.9688314]
[1765406131229,6.7061,3334.4,3334.3,5.78842]
[1765406132132,6.70894696,3334.4,3334.3,5.78842]
[1765406132836,0.00284696,3334.4,3334.3,5.78842]
[1765406133033,2.85594696,3334.4,3334.3,5.78842]
[1765406133237,0.00284696,3334.4,3334.3,5.78842]
[1765406134035,0.00284696,3334.4,3334.3,8.99622]
[1765406135735,5.78934696,3334.4,3334.3,8.99622]
[1765406136044,2.85594696,3334.4,3334.3,8.99622]
[1765406137342,0.00284696,3334.4,3334.3,8.99622]
[1765406138039,5.7865,3334.1,3334.0,0.0045026]
[1765406138242,4.7648,3333.2,3333.1,0.00264407]
[1765406138540,4.7648,3333.2,3333.1,5.64114407]
[1765406138744,7.9726,3333.2,3333.1,5.64114407]
[1765406139137,7.9726,3333.2,3333.1,2.78944407]
[1765406140134,7.9726,3333.2,3333.1,0.00264407]
[1765406142343,9.1716514,3333.2,3333.1,0.00264407]
[1765406149048,7.9726,3333.2,3333.1,0.00264407]
[1765406153443,11.8256,3333.2,3333.1,0.00264407]
[1765406158161,7.9726,3333.2,3333.1,0.00264407]
[1765406159356,7.9726,3333.2,3333.1,0.15262407]
[1765406161452,7.9726,3333.2,3333.1,2.93942407]
[1765406161852,7.9726,3333.2,3333.1,0.15262407]
[1765406163357,4.7648,3333.2,3333.1,0.15262407]
[1765406163556,7.9726,3333.2,3333.1,0.15262407]
[1765406166255,8.95790414,3333.2,3333.1,0.15262407]
[1765406166961,6.0261,3332.9,3332.8,0.0045026]
[1765406167263,8.21161877,3332.9,3332.8,0.0045026]
[1765406167864,8.21161877,3332.9,3332.8,0.1544926]
[1765406168064,8.21161877,3332.9,3332.8,0.15716137]
[1765406169959,11.41941877,3332.9,3332.8,0.15716137]
[1765406172860,15.27241877,3332.9,3332.8,0.15716137]
[1765406173965,11.41941877,3332.9,3332.8,0.15716137]
[1765406180163,11.41941877,3332.9,3332.8,3.18876137]
[1765406180358,4.19426737,3332.9,3332.8,6.18226137]
[1765406180667,3.2078,3332.9,3332.8,6.18226137]
[1765406182370,5.8789,3332.9,3332.8,6.18226137]
[1765406184963,9.7319,3332.9,3332.8,6.18226137]
[1765406186276,7.0608,3332.9,3332.8,6.18226137]
[1765406186670,7.0608,3332.9,3332.8,7.38131277]
[1765406186864,3.853,3332.9,3332.8,7.38131277]
[1765406187973,3.04628562,3333.3,3333.2,5.76477]
[1765406188174,3.2078,3333.8,3333.7,5.6148]
[1765406188384,5.9148,3333.8,3333.7,5.6148]
[1765406188676,8.7157,3333.8,3333.7,5.6148]
[1765406189576,8.7157,3333.8,3333.7,5.76475]
[1765406189978,5.9148,3333.8,3333.7,5.76475]
[1765406190976,2.79731263,3333.8,3333.7,5.76475]
[1765406191171,5.5079,3334.2,3334.1,5.6148]
[1765406191671,5.5079,3334.2,3334.1,5.76473]
[1765406191868,2.707,3334.2,3334.1,5.76473]
[1765406192074,5.5079,3334.2,3334.1,5.76473]
[1765406192680,2.707,3334.2,3334.1,5.76473]
[1765406192880,5.5079,3334.2,3334.1,5.76473]
[1765406194282,2.707,3334.2,3334.1,5.76473]
[1765406195880,5.51074696,3334.4,3334.3,5.76472]
[1765406197980,0.00284696,3334.4,3334.3,5.76472]
[1765406199978,5.51074696,3334.4,3334.3,5.76472]
[1765406201078,0.00284696,3334.4,3334.3,5.76472]
[1765406201485,2.70984696,3334.4,3334.3,5.76472]
[1765406204893,0.00284696,3334.4,3334.3,5.76472]
[1765406205989,1.23326671,3335.5,3334.3,5.76472]
[1765406206193,5.5079,3335.3,3334.7,4.3772954]
[1765406207182,2.707,3334.8,3334.7,8.97251]
[1765406207388,5.5079,3334.8,3334.7,8.97251]
[1765406207997,5.5079,3334.8,3334.7,6.24951]
[1765406208392,5.5079,3334.8,3334.7,8.97251]
[1765406210588,5.5079,3334.8,3334.7,3.35771]
[1765406210994,5.5079,3334.8,3334.7,6.24951]
[1765406211592,5.5079,3334.8,3334.7,8.97251]
[1765406211792,5.5079,3334.8,3334.7,5.76471]
[1765406214092,5.5079,3334.8,3334.7,0.14991]
[1765406219300,8.7157,3334.8,3334.7,0.14991]
[1765406221212,5.946,3334.7,3334.6,0.0045026]
[1765406221416,6.93704132,3334.7,3334.6,0.1544126]
[1765406231219,5.946,3334.2,3334.1,3.2078]
[1765406231420,7.7829,3334.0,3333.9,0.14994]
[1765406232315,5.5705,3333.7,3333.6,0.0045026]
[1765406238126,8.7783,3333.7,3333.6,0.0045026]
[1765406240227,2.7982,3332.9,3332.8,8.77756877]
[1765406240428,2.80180352,3332.9,3332.8,8.77756877]
[1765406240621,0.00360352,3332.9,3332.8,8.77756877]
[1765406241522,0.00360352,3332.9,3332.8,8.92755877]
[1765406242421,5.57410352,3332.9,3332.8,8.92755877]
[1765406243126,2.80180352,3332.9,3332.8,8.92755877]
[1765406243332,2.80180352,3332.9,3332.8,5.71975877]
[1765406243528,2.80180352,3332.9,3332.8,8.92755877]
[1765406244536,2.80180352,3332.9,3332.8,5.71975877]
[1765406244827,2.80180352,3332.9,3332.8,8.92755877]
[1765406245730,5.57410352,3332.9,3332.8,8.92755877]
[1765406247135,2.80180352,3332.9,3332.8,8.92755877]
[1765406252333,5.57410352,3332.9,3332.8,8.92755877]
[1765406256436,0.00360352,3332.9,3332.8,8.92755877]
[1765406256638,2.71290352,3332.9,3332.8,8.92755877]
[1765406257142,0.00360352,3332.9,3332.8,8.92755877]
[1765406266433,0.00360352,3332.9,3332.8,5.71975877]
[1765406269646,5.34050352,3332.9,3332.8,5.71835877]
[1765406269846,2.71290352,3332.9,3332.8,5.71835877]
[1765406270036,5.34050352,3332.9,3332.8,5.71835877]
[1765406270644,5.34050352,3332.9,3332.8,2.89405877]
[1765406271044,5.34050352,3332.9,3332.8,0.15265877]
[1765406272345,5.34050352,3332.9,3332.8,2.91175877]
[1765406273553,5.34050352,3332.9,3332.8,0.15265877]
[1765406277054,5.34050352,3332.9,3332.8,5.73605877]
[1765406277754,0.00360352,3332.9,3332.8,5.73605877]
[1765406280350,0.00360352,3332.9,3332.8,6.93622467]
[1765406281049,0.00360352,3332.9,3332.8,5.16545877]
[1765406281256,5.01820352,3332.9,3332.8,5.16545877]
[1765406281757,2.61540352,3332.9,3332.8,5.16545877]
[1765406282155,5.01820352,3332.9,3332.8,5.16545877]
[1765406282455,2.61540352,3332.9,3332.8,5.16545877]
[1765406282655,5.01820352,3332.9,3332.8,5.16545877]
[1765406289561,0.00360352,3332.9,3332.8,5.16545877]
[1765406290457,6.8515,3334.0,3333.0,1.5545]
[1765406290656,5.0146,3333.9,3333.8,5.0128]
[1765406291469,0.00275707,3333.9,3333.8,5.0128]
[1765406291761,0.00275707,3333.9,3333.8,5.16274]
[1765406294972,0.00275707,3333.9,3333.8,8.37054]
[1765406295960,0.00275707,3333.9,3333.8,5.16274]
[1765406296166,0.00275707,3333.9,3333.8,8.37054]
[1765406301873,0.0045026,3334.3,3333.8,8.37054]
[1765406301874,0.0045026,3334.3,3334.2,4.83213]
[1765406302070,4.5420026,3334.3,3334.2,4.83213]
[1765406302472,4.5420026,3334.3,3334.2,0.14993]
[1765406302772,4.54584465,3334.3,3334.2,2.40573]
[1765406303379,4.54584465,3334.3,3334.2,4.83213]
[1765406303884,4.54584465,3334.3,3334.2,2.40573]
[1765406305882,4.54584465,3334.3,3334.2,0.14993]
[1765406306086,4.54584465,3334.3,3334.2,2.40573]
[1765406306879,4.54584465,3334.3,3334.2,4.83213]
[1765406307079,4.54584465,3334.3,3334.2,2.40573]
[1765406307687,4.54584465,3334.3,3334.2,4.83213]
[1765406307988,2.29274465,3334.3,3334.2,4.83213]
[1765406308180,2.29274465,3334.3,3334.2,8.03993]
[1765406308382,2.29274465,3334.3,3334.2,4.77723]
[1765406308689,4.46584465,3334.3,3334.2,4.77723]
[1765406314892,2.29274465,3334.3,3334.2,4.77723]
[1765406315280,4.46584465,3334.3,3334.2,4.77723]
[1765406315688,0.00834465,3334.3,3334.2,4.77723]
[1765406316292,2.18314465,3334.3,3334.2,4.77723]
[1765406316993,0.00834465,3334.3,3334.2,4.77723]
[1765406317189,2.18314465,3334.3,3334.2,4.77723]
[1765406317693,2.18314465,3334.3,3334.2,7.98503]
[1765406318293,0.00834465,3334.3,3334.2,7.98503]
[1765406318495,0.00834465,3334.3,3334.2,4.77723]
[1765406319990,2.18314465,3334.3,3334.2,4.77723]
[1765406320585,0.00834465,3334.3,3334.2,4.77723]
[1765406322893,2.18314465,3334.3,3334.2,4.77723]
[1765406323494,0.00834465,3334.3,3334.2,4.77723]
[1765406331712,1.5703,3335.5,3335.4,0.14988]
[1765406331908,6.91171934,3335.5,3335.4,0.14988]
[1765406332718,6.91479075,3335.5,3335.4,0.15290302]
[1765406340827,6.91479075,3335.5,3335.4,2.48220302]
[1765406341219,6.91479075,3335.5,3335.4,0.15290302]
[1765406346729,8.08403889,3335.5,3335.4,0.15290302]
[1765406350828,3.919,3335.2,3335.1,0.0045026]
[1765406351020,5.08824814,3335.2,3335.1,0.0045026]
[1765406351225,6.07964807,3335.2,3335.1,0.0045026]
[1765406351921,6.07964807,3335.2,3335.1,0.0083208]
[1765406353435,6.07964807,3335.2,3335.1,0.1582108]
[1765406354233,4.91039993,3335.2,3335.1,0.1582108]
[1765406356440,0.99139993,3335.2,3335.1,3.9962108]
[1765406356741,2.0179,3335.4,3335.3,3.98788]
[1765406356930,3.919,3335.4,3335.3,3.98788]
[1765406357130,0.00307141,3335.5,3335.4,3.98788]
[1765406357735,3.92207141,3335.5,3335.4,3.98788]
[1765406357935,5.06197141,3335.5,3335.4,0.14988]
[1765406358434,5.06197141,3335.5,3335.4,2.10348]
[1765406359233,2.02097141,3335.5,3335.4,3.98788]
[1765406359437,2.02097141,3335.5,3335.4,2.10348]
[1765406359438,5.02147141,3335.5,3335.4,2.10348]
[1765406360033,5.02147141,3335.5,3335.4,3.98788]
[1765406361338,0.0045026,3335.8,3335.7,3.98786]
[1765406361532,2.0179,3336.7,3336.6,3.98782]
[1765406361837,2.0179,3336.7,3336.6,7.19562]
[1765406362035,3.919,3337.3,3337.2,3.838]
[1765406362240,3.919,3337.8,3337.7,3.838]
[1765406362431,0.00291077,3337.8,3337.7,3.9899856]
[1765406362631,1.1546,3339.0,3338.4,3.838]
[1765406362837,3.919,3338.7,3338.6,3.98773]
[1765406363042,3.919,3338.7,3338.6,7.19553]
[1765406363254,2.0179,3339.0,3338.9,3.98772]
[1765406363432,2.0179,3339.2,3339.1,3.9877]
[1765406363634,2.0179,3339.2,3339.1,7.1955]
[1765406363635,0.00297159,3339.2,3339.1,7.1955]
[1765406364929,3.92197159,3339.2,3339.1,3.9877]
[1765406365130,3.919,3338.6,3338.5,3.838]